[Event "Titled Tuesday Blitz May 24 Early 2022"]
[White "Vajda, Levente"]
[Black "Tasev, Dejan"]
[WhiteFideId "1203975"]
[BlackFideId "936618"]
[WhiteElo "2573"]
[BlackElo "2253"]
[Result "1-0"]
[Round "04"]
[TimeControl "180+1"]
[Date "2022.05.25"]
[WhiteClock "0:00:16"]
[BlackClock "0:00:08"]

1. e4 {[%clk 0:03:00]}  e5 {[%clk 0:02:58]} 2. Nf3 {[%clk 0:03:00]}  Nc6 {[%clk 0:02:57]} 3. Bc4 {[%clk 0:03:00]}  Nf6 {[%clk 0:02:56]} 4. d3 {[%clk 0:02:59]}  Bc5 {[%clk 0:02:56]} 5. c3 {[%clk 0:02:59]}  d6 {[%clk 0:02:56]} 6. O-O {[%clk 0:02:58]}  Bb6 {[%clk 0:02:54]} 7. Nbd2 {[%clk 0:02:57]}  h6 {[%clk 0:02:51]} 8. Bb3 {[%clk 0:02:57]}  Be6 {[%clk 0:02:50]} 9. Nc4 {[%clk 0:02:56]}  Qd7 {[%clk 0:02:33]} 10. a4 {[%clk 0:02:56]}  Bxc4 {[%clk 0:02:21]} 11. Bxc4 {[%clk 0:02:55]}  a6 {[%clk 0:02:21]} 12. Re1 {[%clk 0:02:47]}  O-O {[%clk 0:02:17]} 13. Bb3 {[%clk 0:02:38]}  Rae8 {[%clk 0:02:11]} 14. h3 {[%clk 0:02:36]}  Nh7 {[%clk 0:02:03]} 15. Nh4 {[%clk 0:02:31]}  Ne7 {[%clk 0:01:56]} 16. Qf3 {[%clk 0:02:04]}  Ng5 {[%clk 0:01:49]} 17. Qg3 {[%clk 0:02:04]}  Kh7 {[%clk 0:01:27]} 18. Bxg5 {[%clk 0:01:58]}  hxg5 {[%clk 0:01:27]} 19. Qxg5 {[%clk 0:01:59]}  g6 {[%clk 0:01:18]} 20. a5 {[%clk 0:01:58]}  Ba7 {[%clk 0:01:14]} 21. Ba4 {[%clk 0:01:45]}  c6 {[%clk 0:01:11]} 22. b4 {[%clk 0:01:46]}  Kg7 {[%clk 0:01:01]} 23. Rad1 {[%clk 0:01:41]}  Rh8 {[%clk 0:00:58]} 24. d4 {[%clk 0:01:34]}  Rh5 {[%clk 0:00:52]} 25. Qg3 {[%clk 0:01:34]}  Qe6 {[%clk 0:00:38]} 26. Rd3 {[%clk 0:01:23]}  Reh8 {[%clk 0:00:36]} 27. Nf3 {[%clk 0:01:22]}  exd4 {[%clk 0:00:28]} 28. Nxd4 {[%clk 0:01:10]}  Qf6 {[%clk 0:00:26]} 29. Bb3 {[%clk 0:01:05]}  Rg5 {[%clk 0:00:26]} 30. Qf3 {[%clk 0:01:02]}  Qxf3 {[%clk 0:00:21]} 31. Rxf3 {[%clk 0:01:03]}  Rf8 {[%clk 0:00:20]} 32. Rd3 {[%clk 0:00:44]}  c5 {[%clk 0:00:18]} 33. Nf3 {[%clk 0:00:43]}  Rh5 {[%clk 0:00:15]} 34. Rxd6 {[%clk 0:00:42]}  cxb4 {[%clk 0:00:16]} 35. cxb4 {[%clk 0:00:43]}  Nc6 {[%clk 0:00:15]} 36. Rd7 {[%clk 0:00:43]}  Nxb4 {[%clk 0:00:14]} 37. Rxb7 {[%clk 0:00:41]}  Bc5 {[%clk 0:00:14]} 38. Rd1 {[%clk 0:00:34]}  Nc6 {[%clk 0:00:07]} 39. Rc7 {[%clk 0:00:27]}  Nxa5 {[%clk 0:00:07]} 40. Bd5 {[%clk 0:00:26]}  Bb6 {[%clk 0:00:07]} 41. Rd7 {[%clk 0:00:23]}  Bc5 {[%clk 0:00:07]} 42. Ra1 {[%clk 0:00:18]}  Bb4 {[%clk 0:00:08]} 43. Rc1 {[%clk 0:00:16]}  Rxd5 {[%clk 0:00:06]} 44. exd5 {[%clk 0:00:15]}  Nb3 {[%clk 0:00:07]} 45. Rcc7 {[%clk 0:00:12]}  Nc5 {[%clk 0:00:07]} 46. Re7 {[%clk 0:00:10]}  a5 {[%clk 0:00:07]} 47. Ne5 {[%clk 0:00:09]}  Na6 {[%clk 0:00:05]} 48. Rxf7+ {[%clk 0:00:08]}  Rxf7 {[%clk 0:00:05]} 49. Rxf7+ {[%clk 0:00:09]}  Kg8 {[%clk 0:00:06]} 50. Ra7 {[%clk 0:00:10]}  Nc5 {[%clk 0:00:06]} 51. Nd7 {[%clk 0:00:09]}  Nxd7 {[%clk 0:00:06]} 52. Rxd7 {[%clk 0:00:10]}  a4 {[%clk 0:00:07]} 53. Ra7 {[%clk 0:00:10]}  a3 {[%clk 0:00:07]} 54. Kf1 {[%clk 0:00:10]}  Kf8 {[%clk 0:00:07]} 55. Ke2 {[%clk 0:00:10]}  Ke8 {[%clk 0:00:07]} 56. Kd3 {[%clk 0:00:10]}  Bc5 {[%clk 0:00:08]} 57. Ra8+ {[%clk 0:00:10]}  Kd7 {[%clk 0:00:08]} 58. Kc4 {[%clk 0:00:10]}  Bxf2 {[%clk 0:00:07]} 59. Rxa3 {[%clk 0:00:10]}  Kd6 {[%clk 0:00:08]} 60. Rf3 {[%clk 0:00:11]}  Bh4 {[%clk 0:00:07]} 61. g3 {[%clk 0:00:11]}  Be7 {[%clk 0:00:08]} 62. h4 {[%clk 0:00:12]}  Ke5 {[%clk 0:00:08]} 63. Re3+ {[%clk 0:00:12]}  Kf6 {[%clk 0:00:08]} 64. Re6+ {[%clk 0:00:13]}  Kf7 {[%clk 0:00:09]} 65. Kd4 {[%clk 0:00:13]}  Ba3 {[%clk 0:00:09]} 66. Ke4 {[%clk 0:00:14]}  Bb2 {[%clk 0:00:09]} 67. g4 {[%clk 0:00:14]}  Bc1 {[%clk 0:00:09]} 68. h5 {[%clk 0:00:15]}  gxh5 {[%clk 0:00:09]} 69. gxh5 {[%clk 0:00:16]}  Bd2 {[%clk 0:00:10]} 70. h6 {[%clk 0:00:17]}  Kg8 {[%clk 0:00:09]} 71. Kf5 {[%clk 0:00:18]}  Kf7 {[%clk 0:00:09]} 72. Ra6 {[%clk 0:00:17]}  Bc3 {[%clk 0:00:09]} 73. Ra7+ {[%clk 0:00:17]}  Kf8 {[%clk 0:00:08]} 74. Kg6 {[%clk 0:00:17]}  Ke8 {[%clk 0:00:08]} 75. h7 {[%clk 0:00:16]}  Kd8 {[%clk 0:00:08]} 76. Rg7 {[%clk 0:00:16]} 1-0


[Site "https://www.chess.com"]

[Event "Titled Tuesday Blitz May 24 Early 2022"]
[White "Vittorino, Carlo Giovanni"]
[Black "Perez Leiva, Jerzy Jesus"]
[WhiteFideId "4401247"]
[BlackFideId "3524337"]
[WhiteElo "2233"]
[BlackElo "2287"]
[Result "0-1"]
[Round "04"]
[TimeControl "180+1"]
[Date "2022.05.25"]
[WhiteClock "0:00:20"]
[BlackClock "0:00:22"]

1. d4 {[%clk 0:02:59]}  Nf6 {[%clk 0:02:58]} 2. c4 {[%clk 0:02:59]}  e6 {[%clk 0:02:59]} 3. Nf3 {[%clk 0:02:58]}  d5 {[%clk 0:02:58]} 4. g3 {[%clk 0:02:58]}  dxc4 {[%clk 0:02:58]} 5. Bg2 {[%clk 0:02:58]}  Nc6 {[%clk 0:02:52]} 6. Qa4 {[%clk 0:02:56]}  Bb4+ {[%clk 0:02:50]} 7. Bd2 {[%clk 0:02:56]}  Nd5 {[%clk 0:02:44]} 8. Bxb4 {[%clk 0:02:56]}  Nxb4 {[%clk 0:02:44]} 9. Nc3 {[%clk 0:02:51]}  O-O {[%clk 0:02:25]} 10. a3 {[%clk 0:02:40]}  Nd5 {[%clk 0:02:18]} 11. Qxc4 {[%clk 0:02:38]}  Nb6 {[%clk 0:02:16]} 12. Qd3 {[%clk 0:02:36]}  a5 {[%clk 0:02:08]} 13. O-O {[%clk 0:02:35]}  Qe7 {[%clk 0:02:05]} 14. Rfd1 {[%clk 0:02:35]}  Rd8 {[%clk 0:02:05]} 15. Qe4 {[%clk 0:02:18]}  Bd7 {[%clk 0:01:53]} 16. Rac1 {[%clk 0:02:15]}  Be8 {[%clk 0:01:51]} 17. h4 {[%clk 0:02:13]}  f6 {[%clk 0:01:49]} 18. Bh3 {[%clk 0:02:04]}  Bf7 {[%clk 0:01:46]} 19. e3 {[%clk 0:01:45]}  Rd7 {[%clk 0:01:36]} 20. Qf4 {[%clk 0:01:18]}  Rf8 {[%clk 0:01:13]} 21. Qe4 {[%clk 0:01:15]}  Re8 {[%clk 0:01:05]} 22. Qd3 {[%clk 0:01:14]}  Rdd8 {[%clk 0:01:02]} 23. Qb5 {[%clk 0:01:09]}  Ra8 {[%clk 0:00:46]} 24. Ne4 {[%clk 0:01:09]}  a4 {[%clk 0:00:43]} 25. Nc5 {[%clk 0:01:08]}  Bh5 {[%clk 0:00:38]} 26. Bxe6+ {[%clk 0:00:57]}  Kh8 {[%clk 0:00:37]} 27. Kg2 {[%clk 0:00:57]}  Ra5 {[%clk 0:00:34]} 28. Qd3 {[%clk 0:00:53]}  Rxc5 {[%clk 0:00:24]} 29. dxc5 {[%clk 0:00:52]}  Bxf3+ {[%clk 0:00:25]} 30. Kxf3 {[%clk 0:00:51]}  Ne5+ {[%clk 0:00:25]} 31. Kg2 {[%clk 0:00:44]}  Nxd3 {[%clk 0:00:25]} 32. Rxd3 {[%clk 0:00:35]}  Qxe6 {[%clk 0:00:26]} 33. cxb6 {[%clk 0:00:35]}  Qxb6 {[%clk 0:00:27]} 34. Rc2 {[%clk 0:00:27]}  Qe6 {[%clk 0:00:26]} 35. Rd4 {[%clk 0:00:25]}  b6 {[%clk 0:00:22]} 36. Rxa4 {[%clk 0:00:24]}  c5 {[%clk 0:00:22]} 37. Rd2 {[%clk 0:00:20]}  Qc6+ {[%clk 0:00:22]} 0-1


[Site "https://www.chess.com"]

[Event "Titled Tuesday Blitz May 24 Early 2022"]
[White "Volkov, Maksim"]
[Black "Perez Rodriguez, Jennifer"]
[WhiteFideId "54123070"]
[BlackFideId "3507831"]
[WhiteElo "2155"]
[BlackElo "2170"]
[Result "1-0"]
[Round "04"]
[TimeControl "180+1"]
[Date "2022.05.25"]
[WhiteClock "0:00:50"]
[BlackClock "0:00:18"]

1. d4 {[%clk 0:03:00]}  Nf6 {[%clk 0:02:59]} 2. c4 {[%clk 0:03:01]}  e6 {[%clk 0:02:58]} 3. g3 {[%clk 0:03:01]}  d5 {[%clk 0:02:56]} 4. Nf3 {[%clk 0:03:00]}  dxc4 {[%clk 0:02:54]} 5. Bg2 {[%clk 0:02:59]}  Be7 {[%clk 0:02:51]} 6. O-O {[%clk 0:03:00]}  O-O {[%clk 0:02:52]} 7. Ne5 {[%clk 0:02:57]}  Nc6 {[%clk 0:02:50]} 8. Bxc6 {[%clk 0:02:57]}  bxc6 {[%clk 0:02:50]} 9. Nxc6 {[%clk 0:02:57]}  Qe8 {[%clk 0:02:50]} 10. Nxe7+ {[%clk 0:02:58]}  Qxe7 {[%clk 0:02:51]} 11. Nc3 {[%clk 0:02:58]}  e5 {[%clk 0:02:49]} 12. d5 {[%clk 0:02:45]}  e4 {[%clk 0:02:41]} 13. Qd4 {[%clk 0:02:40]}  Bb7 {[%clk 0:02:40]} 14. Qxc4 {[%clk 0:02:37]}  Rad8 {[%clk 0:02:40]} 15. Rd1 {[%clk 0:02:37]}  Rfe8 {[%clk 0:02:36]} 16. Bf4 {[%clk 0:02:35]}  Rd7 {[%clk 0:02:29]} 17. Rd2 {[%clk 0:02:29]}  Red8 {[%clk 0:02:27]} 18. Rad1 {[%clk 0:02:30]}  h6 {[%clk 0:02:12]} 19. Qb5 {[%clk 0:02:18]}  Ba8 {[%clk 0:02:09]} 20. Qa5 {[%clk 0:02:17]}  g5 {[%clk 0:01:54]} 21. Bxc7 {[%clk 0:02:14]}  Rc8 {[%clk 0:01:47]} 22. d6 {[%clk 0:02:14]}  Qe6 {[%clk 0:01:47]} 23. Qxa7 {[%clk 0:02:07]}  Qh3 {[%clk 0:01:38]} 24. f3 {[%clk 0:01:23]}  exf3 {[%clk 0:01:33]} 25. exf3 {[%clk 0:01:23]}  Bxf3 {[%clk 0:01:33]} 26. Rf1 {[%clk 0:01:22]}  Rcxc7 {[%clk 0:01:23]} 27. Qxc7 {[%clk 0:01:07]}  Rxc7 {[%clk 0:01:21]} 28. dxc7 {[%clk 0:01:08]}  Nh5 {[%clk 0:00:27]} 29. Rxf3 {[%clk 0:01:03]}  Kg7 {[%clk 0:00:21]} 30. Rd8 {[%clk 0:00:54]}  Nf4 {[%clk 0:00:20]} 31. Rxf4 {[%clk 0:00:53]}  gxf4 {[%clk 0:00:20]} 32. c8=Q {[%clk 0:00:53]}  Qh5 {[%clk 0:00:18]} 33. Rg8+ {[%clk 0:00:52]}  Kf6 {[%clk 0:00:18]} 34. Qc6+ {[%clk 0:00:51]}  Ke7 {[%clk 0:00:18]} 35. Re8# {[%clk 0:00:50]} 1-0


[Site "https://www.chess.com"]

[Event "Titled Tuesday Blitz May 24 Early 2022"]
[White "Vovk, Orest"]
[Black "Oganian, Miran"]
[WhiteFideId "14113490"]
[BlackFideId "4122488"]
[WhiteElo "2203"]
[BlackElo "2357"]
[Result "1-0"]
[Round "04"]
[TimeControl "180+1"]
[Date "2022.05.25"]
[WhiteClock "0:00:26"]
[BlackClock "0:00:35"]

1. h4 {[%clk 0:02:55]}  e5 {[%clk 0:02:57]} 2. h5 {[%clk 0:02:54]}  d5 {[%clk 0:02:56]} 3. h6 {[%clk 0:02:54]}  Nxh6 {[%clk 0:02:52]} 4. d4 {[%clk 0:02:54]}  e4 {[%clk 0:02:48]} 5. Bxh6 {[%clk 0:02:54]}  gxh6 {[%clk 0:02:47]} 6. e3 {[%clk 0:02:55]}  c5 {[%clk 0:02:47]} 7. Ne2 {[%clk 0:02:54]}  Nc6 {[%clk 0:02:47]} 8. Nbc3 {[%clk 0:02:54]}  cxd4 {[%clk 0:02:45]} 9. Nxd4 {[%clk 0:02:54]}  Bg7 {[%clk 0:02:42]} 10. Rh5 {[%clk 0:02:53]}  Nxd4 {[%clk 0:02:38]} 11. Rxd5 {[%clk 0:02:50]}  Qb6 {[%clk 0:02:24]} 12. exd4 {[%clk 0:02:40]}  O-O {[%clk 0:02:13]} 13. Rb5 {[%clk 0:02:26]}  Qxd4 {[%clk 0:02:05]} 14. Qxd4 {[%clk 0:02:26]}  Bxd4 {[%clk 0:02:06]} 15. O-O-O {[%clk 0:02:14]}  Bxf2 {[%clk 0:02:04]} 16. Nxe4 {[%clk 0:02:11]}  Be3+ {[%clk 0:02:04]} 17. Kb1 {[%clk 0:02:10]}  Be6 {[%clk 0:02:01]} 18. Rxb7 {[%clk 0:02:04]}  Rab8 {[%clk 0:02:00]} 19. Rxb8 {[%clk 0:02:03]}  Rxb8 {[%clk 0:02:01]} 20. Bd3 {[%clk 0:01:55]}  Kg7 {[%clk 0:01:58]} 21. Rf1 {[%clk 0:01:45]}  h5 {[%clk 0:01:55]} 22. Nd6 {[%clk 0:01:39]}  Bd4 {[%clk 0:01:42]} 23. b3 {[%clk 0:01:37]}  h4 {[%clk 0:01:36]} 24. Nf5+ {[%clk 0:01:36]}  Bxf5 {[%clk 0:01:33]} 25. Rxf5 {[%clk 0:01:37]}  Re8 {[%clk 0:01:33]} 26. Rf1 {[%clk 0:01:30]}  Bc3 {[%clk 0:01:29]} 27. a3 {[%clk 0:01:23]}  a5 {[%clk 0:01:24]} 28. Ka2 {[%clk 0:01:19]}  Re3 {[%clk 0:01:24]} 29. Rf4 {[%clk 0:01:12]}  h5 {[%clk 0:01:19]} 30. b4 {[%clk 0:01:06]}  Rg3 {[%clk 0:01:06]} 31. b5 {[%clk 0:00:57]}  Rxg2 {[%clk 0:01:03]} 32. Rxh4 {[%clk 0:00:50]}  Rg1 {[%clk 0:01:01]} 33. Kb3 {[%clk 0:00:41]}  Bf6 {[%clk 0:01:00]} 34. Rxh5 {[%clk 0:00:40]}  Rb1+ {[%clk 0:00:59]} 35. Ka4 {[%clk 0:00:40]}  Be7 {[%clk 0:00:59]} 36. Kxa5 {[%clk 0:00:35]}  Bxa3 {[%clk 0:00:56]} 37. b6 {[%clk 0:00:35]}  Bd6 {[%clk 0:00:55]} 38. Rd5 {[%clk 0:00:31]}  Bh2 {[%clk 0:00:50]} 39. c4 {[%clk 0:00:29]}  Kf6 {[%clk 0:00:45]} 40. Bxb1 {[%clk 0:00:28]}  Ke6 {[%clk 0:00:42]} 41. Ka6 {[%clk 0:00:27]}  f5 {[%clk 0:00:35]} 42. Bxf5+ {[%clk 0:00:26]} 1-0


[Site "https://www.chess.com"]

[Event "Titled Tuesday Blitz May 24 Early 2022"]
[White "Wadsworth, Matthew J"]
[Black "Papasimakopoulos, Alexandros"]
[WhiteFideId "415804"]
[BlackFideId "4244125"]
[WhiteElo "2294"]
[BlackElo "2340"]
[Result "1-0"]
[Round "04"]
[TimeControl "180+1"]
[Date "2022.05.25"]
[WhiteClock "0:00:33"]
[BlackClock "0:00:13"]

1. Nf3 {[%clk 0:03:00]}  f5 {[%clk 0:01:31]} 2. g3 {[%clk 0:02:56]}  Nf6 {[%clk 0:01:31]} 3. Bg2 {[%clk 0:02:54]}  g6 {[%clk 0:01:31]} 4. c4 {[%clk 0:02:52]}  Bg7 {[%clk 0:01:31]} 5. Nc3 {[%clk 0:02:52]}  O-O {[%clk 0:01:30]} 6. O-O {[%clk 0:02:51]}  d6 {[%clk 0:01:30]} 7. d3 {[%clk 0:02:49]}  Nc6 {[%clk 0:01:28]} 8. Rb1 {[%clk 0:02:48]}  a5 {[%clk 0:01:28]} 9. a3 {[%clk 0:02:48]}  e5 {[%clk 0:01:27]} 10. b4 {[%clk 0:02:48]}  axb4 {[%clk 0:01:28]} 11. axb4 {[%clk 0:02:48]}  h6 {[%clk 0:01:28]} 12. b5 {[%clk 0:02:47]}  Ne7 {[%clk 0:01:28]} 13. Bb2 {[%clk 0:02:46]}  g5 {[%clk 0:01:25]} 14. Qb3 {[%clk 0:02:45]}  Be6 {[%clk 0:01:25]} 15. Ra1 {[%clk 0:02:45]}  Rb8 {[%clk 0:01:25]} 16. Nd2 {[%clk 0:02:43]}  f4 {[%clk 0:01:10]} 17. Ra7 {[%clk 0:02:30]}  Qc8 {[%clk 0:01:09]} 18. b6 {[%clk 0:02:17]}  c6 {[%clk 0:00:57]} 19. Ba3 {[%clk 0:02:13]}  Nf5 {[%clk 0:00:55]} 20. Nde4 {[%clk 0:02:08]}  Nxe4 {[%clk 0:00:50]} 21. Nxe4 {[%clk 0:02:07]}  Qd8 {[%clk 0:00:39]} 22. Qb2 {[%clk 0:01:52]}  Kh8 {[%clk 0:00:35]} 23. g4 {[%clk 0:01:50]}  Nd4 {[%clk 0:00:24]} 24. Bxd6 {[%clk 0:01:48]}  Bxg4 {[%clk 0:00:24]} 25. f3 {[%clk 0:01:33]}  Bf5 {[%clk 0:00:20]} 26. Bxb8 {[%clk 0:01:16]}  Qxb8 {[%clk 0:00:21]} 27. Rfa1 {[%clk 0:01:15]}  g4 {[%clk 0:00:21]} 28. Qa2 {[%clk 0:00:53]}  Bxe4 {[%clk 0:00:20]} 29. dxe4 {[%clk 0:00:50]}  Qd6 {[%clk 0:00:20]} 30. Rxb7 {[%clk 0:00:47]}  Qc5 {[%clk 0:00:20]} 31. Kh1 {[%clk 0:00:44]}  g3 {[%clk 0:00:20]} 32. Qa7 {[%clk 0:00:40]}  Bf6 {[%clk 0:00:16]} 33. Rb8 {[%clk 0:00:38]}  Nxe2 {[%clk 0:00:15]} 34. Rxf8+ {[%clk 0:00:37]}  Qxf8 {[%clk 0:00:15]} 35. Qa8 {[%clk 0:00:35]}  Bd8 {[%clk 0:00:15]} 36. b7 {[%clk 0:00:35]}  gxh2 {[%clk 0:00:15]} 37. Qxd8 {[%clk 0:00:35]}  Qxd8 {[%clk 0:00:14]} 38. Ra8 {[%clk 0:00:35]}  Ng3+ {[%clk 0:00:15]} 39. Kxh2 {[%clk 0:00:35]}  Qg8 {[%clk 0:00:12]} 40. Rxg8+ {[%clk 0:00:33]}  Kxg8 {[%clk 0:00:13]} 41. b8=Q+ {[%clk 0:00:33]} 1-0


[Site "https://www.chess.com"]

[Event "Titled Tuesday Blitz May 24 Early 2022"]
[White "Yang, Kaiqi"]
[Black "Petrovskyi, Vadym"]
[WhiteFideId "8604398"]
[BlackFideId "14165210"]
[WhiteElo "2373"]
[BlackElo "2400"]
[Result "0-1"]
[Round "04"]
[TimeControl "180+1"]
[Date "2022.05.24"]
[WhiteClock "0:00:51"]
[BlackClock "0:00:15"]

1. d4 {[%clk 0:03:00]}  Nf6 {[%clk 0:02:59]} 2. c4 {[%clk 0:03:01]}  g6 {[%clk 0:02:59]} 3. h4 {[%clk 0:03:01]}  Bg7 {[%clk 0:02:58]} 4. Nc3 {[%clk 0:03:01]}  O-O {[%clk 0:02:58]} 5. h5 {[%clk 0:03:00]}  c5 {[%clk 0:02:54]} 6. hxg6 {[%clk 0:02:54]}  hxg6 {[%clk 0:02:55]} 7. d5 {[%clk 0:02:54]}  a6 {[%clk 0:02:50]} 8. Bh6 {[%clk 0:02:54]}  b5 {[%clk 0:02:50]} 9. Qd2 {[%clk 0:02:52]}  Bh8 {[%clk 0:01:57]} 10. Bxf8 {[%clk 0:02:52]}  Qxf8 {[%clk 0:01:56]} 11. cxb5 {[%clk 0:02:39]}  axb5 {[%clk 0:01:57]} 12. Nxb5 {[%clk 0:02:36]}  e6 {[%clk 0:01:49]} 13. dxe6 {[%clk 0:02:26]}  dxe6 {[%clk 0:01:50]} 14. Nf3 {[%clk 0:02:24]}  Bb7 {[%clk 0:01:45]} 15. e3 {[%clk 0:02:22]}  Nc6 {[%clk 0:01:41]} 16. a3 {[%clk 0:02:11]}  Ne4 {[%clk 0:01:37]} 17. Qc2 {[%clk 0:02:09]}  Nb4 {[%clk 0:01:35]} 18. Qc1 {[%clk 0:01:58]}  Nd5 {[%clk 0:01:13]} 19. Bd3 {[%clk 0:01:58]}  Ra4 {[%clk 0:01:04]} 20. b3 {[%clk 0:01:49]}  Ra5 {[%clk 0:01:00]} 21. Bxe4 {[%clk 0:01:44]}  Rxb5 {[%clk 0:00:59]} 22. Rb1 {[%clk 0:01:36]}  Bg7 {[%clk 0:00:55]} 23. O-O {[%clk 0:01:33]}  Nc3 {[%clk 0:00:52]} 24. Bd3 {[%clk 0:01:33]}  c4 {[%clk 0:00:24]} 25. Bxc4 {[%clk 0:01:26]}  Rh5 {[%clk 0:00:23]} 26. e4 {[%clk 0:01:09]}  Bxe4 {[%clk 0:00:20]} 27. Nd2 {[%clk 0:01:05]}  Qd6 {[%clk 0:00:17]} 28. f4 {[%clk 0:00:53]}  Bd4+ {[%clk 0:00:17]} 29. Rf2 {[%clk 0:00:53]}  Qxf4 {[%clk 0:00:17]} 30. Nxe4 {[%clk 0:00:51]}  Qh2+ {[%clk 0:00:15]} 0-1


[Site "https://www.chess.com"]

[Event "Titled Tuesday Blitz May 24 Early 2022"]
[White "Yeletsky, Ivan"]
[Black "Paravyan, David"]
[WhiteFideId "24180327"]
[BlackFideId "4194985"]
[WhiteElo "2319"]
[BlackElo "2569"]
[Result "0-1"]
[Round "04"]
[TimeControl "180+1"]
[Date "2022.05.24"]
[WhiteClock "0:01:25"]
[BlackClock "0:02:28"]

1. e4 {[%clk 0:02:35]}  e5 {[%clk 0:02:59]} 2. Nf3 {[%clk 0:02:32]}  Nf6 {[%clk 0:02:59]} 3. d4 {[%clk 0:02:29]}  Nxe4 {[%clk 0:02:59]} 4. Bd3 {[%clk 0:02:27]}  d5 {[%clk 0:02:58]} 5. Nxe5 {[%clk 0:02:27]}  Nd7 {[%clk 0:02:56]} 6. Nc3 {[%clk 0:02:25]}  Nxe5 {[%clk 0:02:46]} 7. dxe5 {[%clk 0:02:25]}  Bb4 {[%clk 0:02:47]} 8. O-O {[%clk 0:02:24]}  Nxc3 {[%clk 0:02:47]} 9. bxc3 {[%clk 0:02:24]}  Bxc3 {[%clk 0:02:48]} 10. Rb1 {[%clk 0:02:24]}  Qh4 {[%clk 0:02:47]} 11. Ba3 {[%clk 0:02:19]}  a5 {[%clk 0:02:47]} 12. Bb5+ {[%clk 0:02:09]}  c6 {[%clk 0:02:43]} 13. Qxd5 {[%clk 0:02:10]}  Bd7 {[%clk 0:02:29]} 14. Qc5 {[%clk 0:01:38]}  Bb4 {[%clk 0:02:30]} 15. Bxb4 {[%clk 0:01:27]}  axb4 {[%clk 0:02:29]} 16. Rxb4 {[%clk 0:01:28]}  Qe7 {[%clk 0:02:28]} 17. Qxe7+ {[%clk 0:01:28]}  Kxe7 {[%clk 0:02:29]} 18. Bc4 {[%clk 0:01:24]}  b5 {[%clk 0:02:29]} 19. Bb3 {[%clk 0:01:25]}  c5 {[%clk 0:02:28]} 0-1


[Site "https://www.chess.com"]

[Event "Titled Tuesday Blitz May 24 Early 2022"]
[White "Zhigalko, Sergei"]
[Black "Khoroshev, Nikita"]
[WhiteFideId "13502956"]
[BlackFideId "14200287"]
[WhiteElo "2662"]
[BlackElo "2354"]
[Result "0-1"]
[Round "04"]
[TimeControl "180+1"]
[Date "2022.05.24"]
[WhiteClock "0:00:02"]
[BlackClock "0:00:12"]

1. e4 {[%clk 0:02:58]}  e5 {[%clk 0:02:58]} 2. Nf3 {[%clk 0:02:58]}  Nc6 {[%clk 0:02:58]} 3. Bc4 {[%clk 0:02:57]}  Nf6 {[%clk 0:02:56]} 4. d3 {[%clk 0:02:57]}  Bc5 {[%clk 0:02:54]} 5. O-O {[%clk 0:02:57]}  d6 {[%clk 0:02:50]} 6. c3 {[%clk 0:02:54]}  O-O {[%clk 0:02:44]} 7. Bg5 {[%clk 0:02:46]}  h6 {[%clk 0:02:43]} 8. Bh4 {[%clk 0:02:46]}  g5 {[%clk 0:02:43]} 9. Bg3 {[%clk 0:02:43]}  Bg4 {[%clk 0:02:41]} 10. Nbd2 {[%clk 0:02:43]}  Nh5 {[%clk 0:02:40]} 11. b4 {[%clk 0:02:32]}  Bb6 {[%clk 0:02:40]} 12. a4 {[%clk 0:02:33]}  a5 {[%clk 0:02:40]} 13. b5 {[%clk 0:02:33]}  Ne7 {[%clk 0:02:39]} 14. d4 {[%clk 0:02:33]}  Ng6 {[%clk 0:02:33]} 15. Bd5 {[%clk 0:02:21]}  Qc8 {[%clk 0:02:27]} 16. Nc4 {[%clk 0:02:17]}  Ba7 {[%clk 0:02:11]} 17. dxe5 {[%clk 0:01:27]}  Nxg3 {[%clk 0:01:56]} 18. hxg3 {[%clk 0:01:28]}  dxe5 {[%clk 0:01:50]} 19. Nxa5 {[%clk 0:00:56]}  Bxf2+ {[%clk 0:01:49]} 20. Rxf2 {[%clk 0:00:57]}  Rxa5 {[%clk 0:01:49]} 21. Qb3 {[%clk 0:00:55]}  Kg7 {[%clk 0:01:43]} 22. Nd2 {[%clk 0:00:41]}  c6 {[%clk 0:01:32]} 23. bxc6 {[%clk 0:00:36]}  bxc6 {[%clk 0:01:31]} 24. Bxf7 {[%clk 0:00:36]}  Qd7 {[%clk 0:01:16]} 25. Raf1 {[%clk 0:00:35]}  Nh8 {[%clk 0:01:03]} 26. Bc4 {[%clk 0:00:12]}  Rxf2 {[%clk 0:00:54]} 27. Rxf2 {[%clk 0:00:13]}  Ra8 {[%clk 0:00:45]} 28. Qb4 {[%clk 0:00:13]}  Qc7 {[%clk 0:00:35]} 29. Qc5 {[%clk 0:00:11]}  Rd8 {[%clk 0:00:31]} 30. a5 {[%clk 0:00:11]}  Ra8 {[%clk 0:00:30]} 31. a6 {[%clk 0:00:11]}  h5 {[%clk 0:00:27]} 32. Nf1 {[%clk 0:00:08]}  Qa7 {[%clk 0:00:24]} 33. Qxa7+ {[%clk 0:00:08]}  Rxa7 {[%clk 0:00:25]} 34. Ne3 {[%clk 0:00:08]}  Bc8 {[%clk 0:00:25]} 35. Nf5+ {[%clk 0:00:08]}  Kh7 {[%clk 0:00:24]} 36. Ra2 {[%clk 0:00:06]}  Ng6 {[%clk 0:00:20]} 37. Nd6 {[%clk 0:00:07]}  Ne7 {[%clk 0:00:17]} 38. Nxc8 {[%clk 0:00:06]}  Nxc8 {[%clk 0:00:18]} 39. Rb2 {[%clk 0:00:06]}  Nd6 {[%clk 0:00:19]} 40. Bd3 {[%clk 0:00:03]}  Nb5 {[%clk 0:00:16]} 41. Bxb5 {[%clk 0:00:02]}  cxb5 {[%clk 0:00:17]} 42. Rxb5 {[%clk 0:00:03]}  Rxa6 {[%clk 0:00:17]} 43. Rxe5 {[%clk 0:00:03]}  Kg6 {[%clk 0:00:17]} 44. Kf2 {[%clk 0:00:03]}  Ra2+ {[%clk 0:00:17]} 45. Kf3 {[%clk 0:00:03]}  g4+ {[%clk 0:00:16]} 46. Kf4 {[%clk 0:00:02]}  Rf2+ {[%clk 0:00:17]} 47. Ke3 {[%clk 0:00:02]}  Rxg2 {[%clk 0:00:17]} 48. Re6+ {[%clk 0:00:02]}  Kg5 {[%clk 0:00:17]} 49. Re5+ {[%clk 0:00:02]}  Kh6 {[%clk 0:00:17]} 50. Re6+ {[%clk 0:00:01]}  Kg7 {[%clk 0:00:18]} 51. Re7+ {[%clk 0:00:01]}  Kf6 {[%clk 0:00:18]} 52. Rh7 {[%clk 0:00:01]}  Rxg3+ {[%clk 0:00:18]} 53. Kd4 {[%clk 0:00:02]}  Rh3 {[%clk 0:00:17]} 54. e5+ {[%clk 0:00:02]}  Kf5 {[%clk 0:00:18]} 55. Rf7+ {[%clk 0:00:03]}  Ke6 {[%clk 0:00:18]} 56. Rf6+ {[%clk 0:00:03]}  Ke7 {[%clk 0:00:19]} 57. Rg6 {[%clk 0:00:03]}  g3 {[%clk 0:00:18]} 58. Kd5 {[%clk 0:00:04]}  h4 {[%clk 0:00:16]} 59. e6 {[%clk 0:00:04]}  Rh2 {[%clk 0:00:17]} 60. Rg7+ {[%clk 0:00:04]}  Kf6 {[%clk 0:00:17]} 61. Rf7+ {[%clk 0:00:04]}  Kg6 {[%clk 0:00:15]} 62. Rf8 {[%clk 0:00:02]}  Rd2+ {[%clk 0:00:14]} 63. Ke5 {[%clk 0:00:02]}  Kg7 {[%clk 0:00:14]} 64. Rf4 {[%clk 0:00:01]}  g2 {[%clk 0:00:14]} 65. Rg4+ {[%clk 0:00:02]}  Kf8 {[%clk 0:00:13]} 66. Kf6 {[%clk 0:00:02]}  Rf2+ {[%clk 0:00:12]} 67. Ke5 {[%clk 0:00:02]}  h3 {[%clk 0:00:13]} 68. Kd6 {[%clk 0:00:02]}  Rd2+ {[%clk 0:00:12]} 69. Kc7 {[%clk 0:00:02]}  h2 {[%clk 0:00:12]} 70. Rf4+ {[%clk 0:00:02]}  Ke7 {[%clk 0:00:12]} 71. Rh4 {[%clk 0:00:02]}  g1=Q {[%clk 0:00:12]} 0-1


[Site "https://www.chess.com"]